Cogmind - Beta 13 @@@ ROGUE MODE // 2024.04.08 @ 09:02:23 Player: Hejka26 Result: Destroyed by G-47 Trooper with Particle Gun Performance ------------- Evolutions (0) 0 Regions Visited (2) 400 Robots Destroyed (11) 55 Value Destroyed (297) 297 Prototype IDs (0) 0 Alien Tech Used (0) 0 Bonus (0) 0 TOTAL SCORE: 752 Bonus ------- None Cogmind --------- Core Integrity 0/250 Matter 156/300 Energy 195/225 System Corruption 0% Temperature Cool (11) Movement Hovering (60) Location -10/Mines Parts ------- > --- POWER (1) -------- Light Ion Engine > --- PROPULSION (2) --- Hover Unit > --- UTILITY (2) ------ Heat Sink Small Battery > --- WEAPON (2) ------- Mining Laser > --- INVENTORY (5) ---- Flight Unit Structural Scanner ECM Suite Assault Rifle Light Cannon Peak State ------------ > --- POWER ------------ Light Ion Engine > --- PROPULSION ------- Wheel Wheel > --- UTILITY ---------- Heat Sink Improved Terrain Scanner > --- WEAPON ----------- EM Pulse Gun Medium Laser > --- INVENTORY -------- Aluminum Leg Wheel Small Laser Grenade Launcher [Rating: 9] Favorites ----------- Power Light Ion Engine Engine Light Ion Engine Propulsion Wheel Leg Aluminum Leg Wheel Wheel Hover Unit Hover Unit Flight Unit Flight Unit Utility Improved Terrain Scanner Device Improved Terrain Scanner Storage Small Battery Weapon EM Pulse Gun Energy Gun EM Pulse Gun Ballistic Gun Assault Rifle Ballistic Cannon Light Cannon Launcher Grenade Launcher Special Weapon Mining Laser Build | -11 -10 -10 ------- Run | Yrd Mat Min Slots Evolved . | . . . Power . | . . . Propulsion . | . . . Utility . | . . . Weapon . | . . . Parts Attached 37 | 7 26 4 Power 2 | 1 1 . Engine 2 | 1 1 . Core . | . . . Reactor . | . . . Propulsion 14 | 3 10 1 Treads . | . . . Leg 5 | . 5 . Wheel 5 | 3 2 . Hover 1 | . . 1 Flight 3 | . 3 . Utility 9 | 1 6 2 Device 6 | 1 3 2 Storage 3 | . 3 . Processor . | . . . Hackware . | . . . Protection . | . . . Artifact . | . . . Weapon 12 | 2 9 1 Energy Gun 6 | 2 4 . Energy Cannon . | . . . Ballistic Gun 2 | . 2 . Ballistic Cannon 2 | . 1 1 Launcher 1 | . 1 . Special Weapon 1 | . 1 . Impact Weapon . | . . . Slashing Weapon . | . . . Piercing Weapon . | . . . Special Melee Weapon . | . . . Unidentified Prototypes . | . . . Parts Lost 7 | . 6 1 Power 1 | . 1 . Propulsion 3 | . 2 1 Utility . | . . . Weapon 3 | . 3 . Highest Loss Streak 6 | . 6 1 To Critical Strikes . | . . . Average Slot Usage (%) 84 | . 84 85 Engine 10 | . 10 14 Leg 9 | . 10 . Wheel 6 | . 7 . Hover 1 | . . 12 Flight 4 | . 3 16 Device 24 | . 25 14 Storage 1 | . . 14 Energy Gun 9 | . 10 . Ballistic Gun 6 | . 7 . Ballistic Cannon 5 | . 6 . Special Weapon 2 | . . 14 Naked Turns . | . . . Heaviest Build 10 | 8 10 7 Greatest Support 20 | 20 20 8 Greatest Overweight (x) 1 | . 1 1 Average Overweight (x) . | . . . Largest Inventory Capacity 8 | 5 8 5 Average Capacity 5 | 5 5 5 Most Carried 5 | 5 5 5 Average Carried 3 | 1 4 4 Final Capacity 5 | 5 5 5 Final Carried 5 | 3 5 5 Class Distribution -------------------- 100% | Mutant Dominant Class ---------------- Mutant | -10/Materials Mutant | -10/Mines Resources | -11 -10 -10 ----------- Run | Yrd Mat Min Matter Collected 504 | 240 216 48 Remotely . | . . . Salvage Created 315 | 50 265 . Parts 16 | 1 15 . Haulers Intercepted . | . . . Recyclers Shooed . | . . . Parts Field Recycled . | . . . Retrieved Matter . | . . . Parts Self-Destructed . | . . . Prevented . | . . . Kills | -11 -10 -10 ------- Run | Yrd Mat Min Combat Hostiles Destroyed 10 | 1 9 . Guns 4 | . 4 . Cannons 2 | . 2 . AOE 3 | . 3 . Classes Destroyed 3 | 1 2 . Recycler 1 | . 1 . Swarmer 3 | . 3 . Grunt 7 | 1 6 . Best Kill Streak 6 | 1 6 . Combat Bots Only 6 | 1 6 . Max Kills in Single Turn 3 | 1 3 . Gunslinging . | . . . Exploded 3 | . 3 . Melee . | . . . Uniques/NPCs Destroyed . | . . . Combat | -11 -10 -10 -------- Run | Yrd Mat Min Hostile Shots Fired 82 | 16 56 10 Missed 17 | 3 9 5 Damage Taken 718 | 145 506 67 Core 267 | 54 183 30 Absorbed by Shields . | . . . Core Remaining (%) 78 | 78 . . Volleys Fired 53 | 13 38 2 Largest 2 | 1 2 1 Hottest 100 | 40 90 100 Shots Fired 68 | 13 53 2 Gun 55 | 13 42 . Cannon 5 | . 5 . Launcher 6 | . 6 . Special 2 | . . 2 Kinetic 28 | . 28 . Thermal 19 | . 17 2 Explosive 6 | . 6 . Electromagnetic 15 | 13 2 . Robot Hit Streak 9 | 4 9 6 Robot Miss Streak 4 | 2 4 . Penetration Max . | . . . Secondary Targets . | . . . Shots Hit Robots 39 | 8 29 2 Core Hits 19 | . 19 . Critical Kills . | . . . Critical Parts Destroyed 1 | . 1 . Critical Strikes 1 | . 1 . Destroy 1 | . 1 . Melee Attacks . | . . . Impact . | . . . Slashing . | . . . Piercing . | . . . Sneak Attacks . | . . . Combat Hostiles . | . . . Follow-up Attacks . | . . . Damage Inflicted 681 | 111 522 48 Guns 364 | 111 253 . Cannons 51 | . 51 . Explosions 218 | . 218 . Melee . | . . . Ramming . | . . . Kinetic 209 | . 209 . Thermal 128 | . 80 48 Explosive 218 | . 218 . Electromagnetic 126 | 111 15 . Impact . | . . . Slashing . | . . . Piercing . | . . . Highest Corruption . | . . . Average Corruption . | . . . Corruption Purged . | . . . Corruption Blocked . | . . . Overload Shots . | . . . Overflow Damage . | . . . Projectiles . | . . . Explosions . | . . . Melee . | . . . Knockbacks . | . . . Impact . | . . . Kinetic . | . . . Secondary . | . . . Self-Inflicted Damage 3 | . 3 . Shots 1 | . 1 . Rammed . | . . . Targets Rammed . | . . . Kicked . | . . . Crushed . | . . . Highest Temperature 72 | 48 72 5 Average Temperature 21 | 21 23 2 Received Heat Transfer 312 | 78 198 36 Siege Activations . | . . . Robots Corrupted 1 | 1 . . Combat Hostiles 1 | 1 . . Parts Fried 1 | 1 . . Impact Corruptions . | . . . Robots Melted . | . . . Combat Hostiles . | . . . Parts Melted . | . . . Heat Transferred 299 | . 199 100 Parts Sabotaged . | . . . Parts Stolen . | . . . Parts Stripped . | . . . Power Chain Reactions . | . . . Alert | -11 -10 -10 ------- Run | Yrd Mat Min Peak Influence 326 | 20 326 51 Initial 51 | . 13 51 Average 122 | 10 165 50 Maximum Alert Level 1 | . 1 . Low Security (%) 79 | 100 70 100 Level 1 20 | . 29 . Level 2 . | . . . Level 3 . | . . . Level 4 . | . . . Level 5 . | . . . High Security . | . . . Max Security . | . . . Squads Dispatched 2 | . 2 . Investigation 1 | . 1 . Extermination . | . . . Reinforcement 1 | . 1 . Assault . | . . . Garrison . | . . . Intercept . | . . . Searches Triggered . | . . . Construction Impeded . | . . . Haulers Reinforced . | . . . Active Scanning Responses . | . . . Cargo Convoy Interrupts . | . . . Stealth | -11 -10 -10 --------- Run | Yrd Mat Min Distress Signals . | . . . Communications Jammed . | . . . Distress Signals . | . . . Times Spotted 20 | 1 15 4 Peak Tracking Total 7 | 1 7 4 Tactical Retreats 1 | . 1 . Traps | -11 -10 -10 ------- Run | Yrd Mat Min Traps Triggered . | . . . Indirectly . | . . . Trap Hack Attempts . | . . . Triggered . | . . . Disarmed . | . . . Reprogrammed . | . . . Reused . | . . . Traps Extracted . | . . . Installed . | . . . Triggered . | . . . Machines | -11 -10 -10 ---------- Run | Yrd Mat Min Machines Disabled 1 | . 1 . Max in Single Turn 1 | . 1 . Machines Repaired . | . . . Machines Dismantled . | . . . Machines Sabotaged . | . . . Overloaded Fab Kills . | . . . Hacking | -11 -10 -10 --------- Run | Yrd Mat Min Machines Accessed 2 | . 2 . Terminals 1 | . 1 . Fabricators . | . . . Repair Stations . | . . . Recycling Units 1 | . 1 . Scanalyzers . | . . . Garrison Access . | . . . Total Hacks 5 | . 5 . Successful 4 | . 4 . Failed 1 | . 1 . Catastrophic . | . . . Database Lockouts . | . . . Manual . | . . . Terminals 4 | . 4 . Fabricators . | . . . Repair Stations . | . . . Recycling Units 1 | . 1 . Scanalyzers . | . . . Garrison Access . | . . . Terminal Hacks 3 | . 3 . Robot Analysis 1 | . 1 . Emergency Access Points 1 | . 1 . Alert Level 1 | . 1 . Fabricator Hacks . | . . . Repair Station Hacks . | . . . Recycling Unit Hacks 1 | . 1 . Report Inventory 1 | . 1 . Scanalyzer . | . . . Garrison Access Hacks . | . . . Unauthorized Hacks . | . . . Terminals . | . . . Fabricators . | . . . Repair Stations . | . . . Recycling Units . | . . . Scanalyzers . | . . . Garrison Access . | . . . Data Cores Recovered . | . . . Used . | . . . Hacking Detections 2 | . 2 . Full Trace Events 1 | . 1 . Feedback Events . | . . . Feedback Blocked . | . . . Robot Schematics Acquired . | . . . Robots Built . | . . . Authchips . | . . . Time . | . . . Total Robot Build Rating . | . . . Part Schematics Acquired . | . . . Parts Built . | . . . Authchips . | . . . Time . | . . . Total Part Build Rating . | . . . Parts Repaired . | . . . Time . | . . . Parts Recycled . | . . . Recycled Matter . | . . . Retrieved Matter . | . . . Retrieved Components . | . . . Parts Scanalyzed . | . . . Part Schematics Acquired . | . . . Parts Damaged . | . . . Bothacking | -11 -10 -10 ------------ Run | Yrd Mat Min Used RIF Installer . | . . . Robots Hacked . | . . . Non-combat . | . . . Combat . | . . . Robot Hacks Applied . | . . . Relay Couplers Released . | . . . Fabnet Peak Effective % . | . . . Robots Rewired . | . . . Allies Hacked . | . . . Hacks Repelled . | . . . Allies | -11 -10 -10 -------- Run | Yrd Mat Min Total Allies . | . . . Largest Group . | . . . Highest-Rated Group . | . . . Highest-Rated Ally . | . . . Total Orders . | . . . Ally Attacks . | . . . Total Damage . | . . . Kills . | . . . Allies Corrupted . | . . . Allies Melted . | . . . Intel | -11 -10 -10 ------- Run | Yrd Mat Min Robot Analysis Total 1 | . 1 . Derelict Logs Recovered 1 | . . 1 Drone Launches . | . . . Drone Recoveries . | . . . Exploration | -11 -10 -10 ------------- Run | Yrd Mat Min Turns Passed 770 | 168 537 65 Spaces Moved 638 | 154 413 71 Core 24 | 17 7 . Treads . | . . . Legs 161 | . 161 . Wheels 298 | 137 161 . Hover 61 | . . 61 Flight 94 | . 84 10 Fastest Speed 37 | 50 37 37 Average Speed 84 | 76 91 64 Slowest Speed 120 | 80 120 120 Overloaded Moves . | . . . Propulsion Burnouts . | . . . Robots Hopped 1 | . 1 . Cave-ins Triggered . | . . . Exploration Rate (%) 21 | 7 41 16 Regions Visited 2 Branch Regions 1 Pre-discovered Areas 1 | . . 1 Known Exits Taken . | . . . Unknown Exits Taken 2 | 1 1 . Scrap Searched 1 | . . 1 Spaces Dug 6 | . 6 . Terrain Destroyed 26 | . 26 . Melee . | . . . Projectile . | . . . AOE 26 | . 26 . Terrain Rammed . | . . . Walls Destroyed . | . . . Machines Disabled . | . . . Actions | -11 -10 -10 --------- Run | Yrd Mat Min Total 804 | 190 528 86 Wait 14 | 8 6 . Move 634 | 153 410 71 Hop 1 | . 1 . Pick Up 38 | 9 25 4 Fast Attach . | . . . Attach 24 | 6 17 1 Detach 6 | . 5 1 Swap 13 | 1 9 3 Drop 21 | . 17 4 Fire 53 | 13 38 2 Melee . | . . . Ram . | . . . Kick . | . . . Crush . | . . . Escape Stasis . | . . . Rewire . | . . . Trap . | . . . Miscellaneous . | . . . Route ------- -11/Scrapyard -10/Materials (discovered 2 exits: [*Min] / [Sub]) -10/Mines History --------- Turn | Location | Event 3 | -11/Scrapyard | Met Revision 17 48 | -11/Scrapyard | Discovered new exit (range 8) 169 | -11/Scrapyard | Entered Materials 261 | -10/Materials | Core integrity fell below 50% 309 | -10/Materials | Core integrity fell below 20% 315 | -10/Materials | Build established: Mutant 342 | -10/Materials | Lost 6 parts (1p2n3w) 461 | -10/Materials | Discovered new exit (range 10) 529 | -10/Materials | Discovered new exit (range 7) 706 | -10/Materials | Entered Mines 727 | -10/Mines | Learned location of Storage (-8) 740 | -10/Mines | Assembled infested the area 771 | -10/Mines | Destroyed by G-47 Trooper with Particle Gun Last Messages --------------- Found 31 Matter. Found 17 Matter. Acquired 17 matter. Dropped Lgt. Cannon. Acquired Hover Unit. Dropped Flight Unit. Acquired 31 matter. Acquired Lgt. Cannon. Dropped Imp. Terrain Scanner. Acquired Flight Unit. Dropped Sml. Storage Unit. Acquired ECM Suite. Acquired derelict log, extracted data. World map updated: -8/Storage. ALERT: Infestation in the mines, dispatching Demolisher response squad. C-30 ARC bursts open, deploying its payload. D-53 Grenadier unfolds itself. Flight Unit destroyed. [Achievement: First Step to Greatness] Map ----- +----------------------------------------------------+ | | | | | | | | | | | | | ????????????????????????????????????????? | | ????????????????????????????????????????? | | ????????????????????????????????????????? | | ????????????????######??????????????????? | | ???????????????## ##?????????????????? | | ???????????????# #?????????????????? | | ???????????????# ##????????????????? | | ??????????????## #????????????????? | | ????????????### ##???????????????? | | ???????????## #???????????????? | | ??????????## #???????????????? | | ????# #???????????????? | | ????# ##% #???????????????? | | ??? #######??# ## ##???????????????? | | ????????????????# #?###????????????????? | | ????????????????# #????????????????????? | | ????????????????# ########?????????????? | | ????????????????# t #?????????????? | | ????????????????# t g### """ "?????? | | ????????###?????######## @g """ "?????? | | ???????## ###????####?# #### ??? | | ???????# ##?## ### #?????"" """ #? | | ???????# ### ##?????????????? | | ???????# #?????????????? | | ???????## #### ##?????????????? | | ????????## ###??###??????????????? | | ?????????# ##?????????????????????? | | ?????????# ##?????????????????????? | | ?????????## ####??????????????????? | | ??????????#### #??????????????????? | | ?????????????### #?????????????????? | | ???????????????## #????????????????? | | ????????????????# #????????????????? | | ????????????????# ##????????????????? | | ????????????????## ##?????????????????? | | ??????????????????####??????????????????? | | ????????????????????????????????????????? | | ????????????????????????????????????????? | | ????????????????????????????????????????? | | ????????????????????????????????????????? | | ????????????????????????????????????????? | | ????????????????????????????????????????? | | ????????????????????????????????????????? | | ????????????????????????????????????????? | +----------------------------------------------------+ Best States ------------- Heat Dissipation 35 Energy Generation 10 Energy Capacity 225 Matter Stores 300 Matter Capacity 300 Sight Range 16 Terrain Scan Range 16 Terrain Scan Density 10 ECM Strength 1 Evasion (%) 62 Item Schematics ----------------- None Robot Schematics ------------------ None Fabricated ------------ Nothing Alien Tech Used ----------------- None Achievements -------------- First Step to Greatness One Hack Too Far Power Corrupts Uninvited Guest Challenges ------------ None Game ------ Seed ChipBoreMatrix Manual? 0 Play Time 00:32:29 Cumulative 0.5 hours Start 2024.04.08 @ 01:14:16 End 2024.04.08 @ 09:02:23 Sessions 3 Manual Loads 0 Difficulty Rogue Special Mode None Game No. 1 Rogue 1 Adventurer 0 Explorer 0 Win Type - Total 0 Types 0/0/0/0/0/0/0/0/0 Lore% 0 Gallery% 2 Achievement% 1 Wizard Run 0 Options --------- Layout 1 ASCII 0 Keyboard 0 Movement Mouse Keybinds 0 Fullscreen 2 Font 24/Smallcaps Map View 50x35 Zoom Use 15% Tactical HUD 0 Map Filters NONE Filters NONE Steam 1 RUN: a6a42658-2a66-452f-8e2d-eea6f4a28d99